bitfinex/quotes_ETHUSD_20260120
["timestamp","ask_amount","ask_price","bid_price","bid_amount"]
[1768902909271,12.64273027,3094.4,3093.6,12.47959544]
[1768902910873,12.64273027,3094.4,3093.6,15.71206146]
[1768902911073,12.64273027,3094.4,3093.7,12.47959544]
[1768902915208,0.533,3094.5,3093.7,12.47959544]
[1768902916479,13.17573027,3094.5,3093.7,12.47959544]
[1768902917883,12.64273027,3094.4,3093.6,2.08392497]
[1768902918087,12.64273027,3094.4,3093.5,12.47959544]
[1768902918485,0.533,3094.5,3093.6,12.47959544]
[1768902918810,0.532,3094.4,3093.8,12.47959544]
[1768902922502,0.001,3094.5,3093.8,12.47959544]
[1768902922682,0.533,3094.5,3093.9,12.47959544]
[1768902923025,0.533,3094.5,3094.1,12.47959544]
[1768902924417,12.42880125,3094.5,3093.8,0.002]
[1768902924985,12.42880125,3094.5,3093.8,12.93704839]
[1768902925817,11.89580125,3094.4,3093.5,0.002]
[1768902926229,11.89580125,3094.3,3093.5,0.002]
[1768902926543,11.66073,3094.3,3093.5,12.93704839]
[1768902927040,11.66073,3094.3,3093.5,0.002]
[1768902927645,0.001,3094.5,3093.6,12.93504839]
[1768902927816,0.001,3094.5,3093.7,14.55201167]
[1768902927817,12.42880125,3094.5,3093.7,14.55201167]
[1768902928003,11.89580125,3094.4,3093.7,1.61696328]
[1768902928203,11.89580125,3094.3,3093.5,0.002]
[1768902929133,11.89580125,3094.2,3093.5,0.002]
[1768902929334,11.89580125,3094.0,3093.5,0.002]
[1768902931243,0.532,3093.9,3093.5,0.002]
[1768902932241,12.42780125,3093.9,3093.5,0.002]
[1768902933541,11.89580125,3093.9,3093.5,0.002]
[1768902933723,0.532,3093.8,3093.5,12.93704839]
[1768902934440,0.532,3093.8,3093.5,14.23075323]
[1768902934606,12.42780125,3093.8,3093.5,0.002]
[1768902940137,11.89580125,3093.8,3093.5,0.002]
[1768902940336,0.532,3093.7,3093.5,0.002]
[1768902940820,12.42780125,3093.7,3093.5,0.002]
[1768902941432,0.532,3093.7,3093.5,0.002]
[1768902942113,12.42780125,3093.7,3093.5,0.002]
[1768902942641,12.42780125,3093.7,3092.8,12.93504839]
[1768902942847,11.89580125,3093.6,3092.8,12.93504839]
[1768902943253,11.89580125,3093.5,3092.8,12.93504839]
[1768902945047,11.96359961,3093.9,3092.8,16.16835458]
[1768902945245,11.96359961,3093.7,3092.9,12.63851102]
[1768902945661,11.96359961,3093.6,3092.9,12.63851102]
[1768902947239,3.23248397,3093.6,3092.9,12.63851102]
[1768902947563,11.96359961,3093.5,3093.1,0.002]
[1768902947857,3.23248397,3093.6,3093.1,0.002]
[1768902947858,11.96359961,3093.3,3093.1,0.002]
[1768902948259,11.96359961,3093.3,3092.8,0.002]
[1768902949042,11.96359961,3093.3,3092.8,12.64051102]
[1768902951539,11.96359961,3093.2,3092.8,0.002]
[1768902956270,0.532,3093.4,3092.8,0.002]
[1768902956271,12.63547321,3093.4,3092.8,12.08746258]
[1768902956474,0.532,3093.3,3092.9,12.08546258]
[1768902956640,0.532,3093.4,3093.1,12.08546258]
[1768902957190,12.63547321,3093.3,3092.8,0.002]
[1768902959537,12.63547321,3093.3,3093.1,0.002]
[1768902959738,12.63547321,3093.3,3092.8,0.002]
[1768902960379,0.532,3093.2,3092.8,12.08746258]
[1768902961256,12.63547321,3093.8,3092.8,13.29620884]
[1768902961550,0.001,3094.1,3092.8,13.29620884]
[1768902961551,13.16747321,3093.7,3092.8,13.29620884]
[1768902961775,0.532,3093.6,3092.8,13.29620884]
[1768902962236,13.16747321,3093.6,3092.8,13.29620884]
[1768902963545,12.63547321,3093.5,3092.8,13.29620884]
[1768902963737,12.63547321,3093.5,3092.8,12.08746258]
[1768902964356,12.63547321,3093.7,3092.8,12.08746258]
[1768902964577,0.532,3093.6,3092.8,12.08746258]
[1768902965279,0.532,3093.6,3092.9,12.08546258]
[1768902965592,3.23209305,3094.0,3092.8,3.2352932]
[1768902965593,12.63547321,3094.0,3093.1,12.08546258]
[1768902965767,0.001,3094.5,3093.3,5.5232012]
[1768902965944,0.001,3094.5,3093.4,12.08546258]
[1768902966238,0.533,3094.5,3093.4,12.08546258]
[1768902967077,0.533,3094.5,3093.6,12.08546258]
[1768902967377,0.533,3094.5,3093.8,12.08546258]
[1768902970765,13.16847321,3094.5,3093.8,12.08546258]
[1768902971277,0.001,3094.2,3093.8,12.08546258]
[1768902975363,12.63647321,3094.2,3093.7,0.002]
[1768902975764,12.63547321,3094.0,3093.4,0.002]
[1768902979762,12.63547321,3093.9,3093.4,0.002]
[1768902981971,3.23218819,3093.9,3093.4,0.002]
[1768902982167,12.63547321,3093.8,3093.4,0.002]
[1768902983196,12.64053545,3093.7,3093.4,0.002]
[1768902984266,12.10853545,3093.6,3093.4,0.002]
[1768902985299,0.532,3093.7,3093.4,0.002]
[1768902985503,0.001,3094.2,3093.4,12.52087027]
[1768902985664,0.533,3094.2,3093.4,12.52087027]
[1768902986370,12.64153545,3094.2,3093.4,12.52087027]
[1768902987103,12.10853545,3094.1,3093.4,12.52087027]
[1768902987401,12.10853545,3094.1,3093.4,0.002]
[1768902987601,12.10853545,3094.0,3093.0,16.31887027]
[1768902987802,12.10853545,3094.0,3093.1,12.51887027]
[1768902987975,12.10853545,3093.8,3093.1,12.51887027]
[1768902988175,12.64053545,3093.8,3093.1,12.51887027]
[1768902988500,12.10853545,3093.7,3093.1,12.51887027]
[1768902990304,0.532,3093.8,3093.1,12.51887027]
[1768902991191,0.001,3094.2,3093.1,12.51887027]
[1768902991395,12.64053545,3094.1,3093.1,12.51887027]
[1768902992186,12.10853545,3094.0,3093.1,12.51887027]
[1768902993595,12.10853545,3094.0,3093.2,12.51887027]
[1768902994788,15.34060849,3094.0,3093.2,12.51887027]
[1768902995120,0.532,3094.1,3093.2,12.51887027]
[1768902995121,12.10853545,3093.9,3093.2,12.51887027]
[1768902995422,12.10853545,3093.9,3093.4,0.002]
[1768902995718,12.10953545,3093.7,3093.4,0.002]
[1768902998010,12.64153545,3093.7,3093.0,12.52087027]
[1768902999910,12.10853545,3093.6,3093.0,12.52087027]
[1768903002696,8.76053545,3093.6,3093.0,12.52087027]
[1768903003016,12.64153545,3093.7,3093.0,12.52087027]
[1768903003215,0.001,3093.7,3093.1,12.51887027]
[1768903003410,0.001,3093.7,3093.3,12.21069011]
[1768903008514,0.001,3093.4,3093.3,12.21069011]
[1768903012488,0.001,3094.2,3093.4,12.21069011]
[1768903012689,0.001,3094.2,3093.6,12.21069011]
[1768903014623,0.001,3094.2,3093.7,12.19199091]
[1768903014821,12.22223584,3094.2,3093.7,12.19199091]
[1768903014992,12.22223584,3094.2,3093.5,12.19199091]
[1768903015322,12.22223584,3094.2,3093.3,12.19199091]
[1768903015522,12.22223584,3094.2,3093.3,14.27201874]
[1768903016321,12.22223584,3094.2,3093.4,12.19199091]
[1768903018600,12.22223584,3094.2,3093.5,12.19199091]
[1768903020128,12.22223584,3094.2,3093.6,0.002]
[1768903020329,0.001,3093.9,3093.6,12.19399091]
[1768903020628,0.001,3094.2,3093.7,12.19199091]
[1768903020919,0.532,3094.1,3093.8,12.19199091]
[1768903021326,0.001,3094.2,3093.8,12.19199091]
[1768903022328,12.22223584,3094.2,3093.6,12.19399091]
[1768903029035,0.001,3094.2,3093.7,12.19199091]
[1768903029214,0.001,3094.2,3093.7,13.73463756]
[1768903029812,0.001,3094.2,3093.8,12.19199091]
[1768903030009,0.532,3094.3,3093.8,12.19199091]
[1768903030206,0.532,3094.8,3093.9,12.19199091]
[1768903031431,12.75323584,3094.8,3093.9,12.19199091]
[1768903031619,12.75323584,3094.8,3094.1,12.19199091]
[1768903032637,12.75323584,3094.8,3094.1,15.42394064]
[1768903032937,12.75323584,3094.8,3094.2,12.19199091]
[1768903033310,0.001,3094.5,3094.2,12.19199091]
[1768903035041,0.001,3094.5,3094.3,12.19199091]
[1768903035244,0.001,3094.5,3094.4,13.73437127]
[1768903037934,0.001,3094.5,3094.4,16.96601553]
[1768903039253,0.532,3094.9,3094.5,12.19199091]
[1768903041489,0.532,3094.9,3093.9,0.002]
[1768903041490,12.22123584,3094.7,3093.9,0.002]
[1768903041754,12.22123584,3094.4,3093.9,0.002]
[1768903041931,12.22123584,3094.2,3093.9,0.002]
[1768903049056,12.22123584,3094.2,3093.6,0.002]
[1768903050993,12.83854301,3094.0,3093.5,0.002]
[1768903051261,13.37054301,3093.9,3093.3,0.002]
[1768903051446,13.37054301,3093.8,3093.3,0.002]
[1768903051651,13.37054301,3093.8,3093.3,12.44664651]
[1768903054259,13.37054301,3093.8,3093.3,0.002]
[1768903056930,13.37054301,3093.8,3093.3,12.44664651]
[1768903057963,13.37054301,3093.8,3093.3,0.002]
[1768903058531,13.37054301,3093.8,3093.6,0.002]
[1768903059736,13.37054301,3093.8,3093.3,0.002]
[1768903061366,13.37054301,3093.8,3093.3,12.44664651]
[1768903065554,13.37054301,3093.8,3093.3,0.002]
[1768903067380,13.37054301,3093.8,3093.3,11.87660475]
[1768903067566,13.37054301,3093.8,3093.3,0.002]
[1768903070251,0.001,3093.5,3093.3,11.87660475]
[1768903071149,0.532,3093.9,3093.5,11.87460475]
[1768903071353,0.532,3094.0,3093.5,11.87460475]
[1768903071848,12.19546215,3094.3,3093.5,11.87460475]
[1768903072054,12.19546215,3094.4,3093.6,11.87460475]
[1768903072283,0.532,3094.3,3093.8,11.87460475]
[1768903072481,0.532,3094.2,3093.8,11.87460475]
[1768903074881,12.24760031,3094.2,3093.7,1.51071558]
[1768903075080,12.24760031,3094.2,3093.5,12.12223742]
[1768903080221,11.71560031,3094.4,3093.5,12.12223742]
[1768903080501,0.532,3094.1,3093.6,12.12223742]
[1768903080700,0.532,3094.0,3093.6,12.12223742]
[1768903080872,0.532,3093.9,3093.8,12.12223742]
[1768903081077,0.532,3093.9,3093.7,1.21222374]
[1768903081487,0.532,3093.9,3093.6,12.12223742]
[1768903081488,0.532,3093.9,3093.5,0.0032]
[1768903081802,0.532,3093.9,3093.5,12.12543742]
[1768903082003,12.24860031,3093.9,3093.5,0.0032]
[1768903082176,12.24940031,3093.9,3093.3,0.002]
[1768903084699,11.71560031,3093.8,3093.3,0.002]
[1768903085009,11.71560031,3093.7,3092.8,12.12224336]
[1768903087487,11.71560031,3093.7,3092.8,15.35554564]
[1768903087680,11.71560031,3093.7,3092.9,12.12223742]
[1768903093403,0.001,3093.4,3092.9,12.12223742]
[1768903093597,0.533,3093.4,3092.9,13.65780322]
[1768903105229,0.001,3093.1,3092.9,13.65780322]
[1768903108645,12.16724271,3093.8,3093.0,12.20304622]
[1768903108807,0.0018,3093.9,3093.0,12.20304622]
[1768903108808,0.0018,3093.9,3093.2,12.20304622]
[1768903109007,0.0018,3093.9,3093.4,12.20304622]
[1768903109837,0.0018,3093.9,3093.5,12.20304622]
[1768903110507,0.0008,3094.2,3093.5,12.20304622]
[1768903112131,0.0008,3094.2,3093.7,12.20304622]
[1768903114236,0.0008,3094.2,3093.8,12.20304622]
[1768903114438,0.0008,3094.2,3094.0,12.20304622]
[1768903114929,12.16804271,3094.2,3093.4,12.73404622]
[1768903115231,12.16804271,3094.2,3093.6,12.20304622]
[1768903116670,12.16804271,3094.2,3093.4,12.20304622]
[1768903116824,0.001,3093.9,3093.4,15.43573178]
[1768903117019,0.001,3093.9,3093.5,13.92388196]
[1768903119560,0.001,3093.9,3093.6,12.20304622]
[1768903120255,12.70004271,3094.2,3093.6,12.20304622]
[1768903120638,0.5328,3094.2,3093.6,12.20304622]
[1768903120859,0.5328,3094.2,3093.7,12.20304622]
[1768903121061,0.5328,3094.2,3093.8,13.42335084]
[1768903121854,12.70004271,3094.2,3093.8,1.22030462]
[1768903123559,12.70004271,3094.2,3093.8,13.54255281]
[1768903123731,0.5328,3094.2,3093.8,13.54255281]
[1768903125967,13.37483729,3094.2,3093.8,13.54255281]
[1768903127033,0.0008,3094.2,3094.0,12.32224819]
[1768903128162,0.0008,3094.2,3093.9,1.35425528]
[1768903128364,12.84283729,3094.2,3093.8,13.54255281]
[1768903129066,0.001,3093.9,3093.8,13.54255281]
[1768903129236,0.001,3093.9,3093.8,1.22030462]
[1768903129533,0.001,3093.9,3093.7,12.32424819]
[1768903132762,0.0008,3094.2,3093.7,3.23435417]
[1768903132965,0.5328,3094.2,3093.8,12.32224819]
[1768903136542,0.0008,3094.2,3093.8,12.32224819]
[1768903136765,0.0008,3094.5,3094.0,11.74763948]
[1768903136949,0.0008,3094.5,3094.2,11.74763948]
[1768903141882,12.41985688,3094.5,3093.7,0.533]
[1768903142064,12.41985688,3094.5,3093.7,15.51294935]
[1768903142247,12.41985688,3094.5,3093.8,11.74763948]
[1768903142586,12.41985688,3094.5,3093.8,13.29893442]
[1768903142944,12.41985688,3094.5,3093.7,0.002]
[1768903144250,12.41905688,3094.4,3093.7,0.002]
[1768903144446,12.41905688,3094.2,3093.7,0.002]
[1768903152478,12.41905688,3094.2,3094.0,0.002]
[1768903154076,12.41905688,3094.2,3093.7,0.002]
[1768903159891,12.41905688,3094.2,3093.7,11.74963948]
[1768903160055,0.532,3094.1,3093.7,11.74963948]
[1768903161303,12.95105688,3094.1,3093.7,0.002]
[1768903164389,12.95105688,3094.1,3094.0,0.002]
[1768903164687,0.532,3094.1,3093.7,12.89586675]
[1768903166869,12.34043662,3094.1,3093.7,3.95e-06]
[1768903172378,0.532,3094.1,3093.7,3.95e-06]
[1768903174590,0.532,3094.0,3093.7,3.95e-06]
[1768903178894,11.80843662,3094.3,3093.7,3.95e-06]
[1768903179100,0.532,3094.0,3093.7,3.95e-06]
[1768903183802,12.70864535,3094.1,3093.7,3.95e-06]
[1768903183974,0.532,3094.0,3093.7,3.95e-06]
[1768903190489,12.97226432,3094.4,3093.7,12.67923803]
[1768903190886,0.532,3094.3,3093.7,12.67923803]
[1768903192721,13.50426432,3094.3,3093.7,12.67923803]
[1768903199228,0.001,3094.0,3093.7,12.67923803]
[1768903200903,11.8622328,3094.0,3093.7,3.95e-06]
[1768903201524,11.8622328,3094.0,3093.2,3.23284776]
[1768903201525,11.8612328,3093.8,3093.0,0.0016]
[1768903201847,11.8612328,3093.3,3092.8,5.94e-06]
[1768903202028,11.8612328,3093.1,3092.8,5.94e-06]
[1768903203146,11.8612328,3093.0,3092.8,5.94e-06]
[1768903206534,11.8612328,3092.9,3092.2,7.91e-06]
[1768903206867,11.8612328,3092.7,3092.2,7.91e-06]
[1768903209037,11.8612328,3092.6,3092.2,7.91e-06]
[1768903209246,11.8612328,3092.4,3092.2,7.91e-06]
[1768903209415,11.8612328,3092.4,3092.0,0.0036]
[1768903209416,11.8612328,3092.2,3091.8,0.002]
[1768903212446,0.532,3092.1,3091.8,12.33046695]
[1768903212648,12.3932328,3092.1,3091.8,0.002]
[1768903213312,12.3932328,3092.0,3091.8,0.002]
[1768903213508,12.3932328,3092.0,3091.5,1.98e-06]
[1768903215310,11.8612328,3091.9,3091.5,1.98e-06]
[1768903216642,0.533,3091.8,3091.5,1.98e-06]
[1768903216815,12.3942328,3091.8,3091.5,1.98e-06]
[1768903217937,11.8612328,3091.6,3091.5,1.98e-06]
[1768903218242,0.533,3091.8,3091.5,1.98e-06]
[1768903218847,12.3942328,3091.8,3091.5,1.98e-06]
[1768903219141,11.8612328,3092.2,3091.5,1.98e-06]
[1768903219350,0.533,3092.1,3091.5,1.98e-06]
[1768903219743,11.8630328,3092.4,3091.5,12.32846893]
[1768903220043,0.533,3092.3,3091.8,12.32846695]
[1768903220220,0.0018,3092.4,3091.8,12.32846695]
[1768903220416,0.533,3092.2,3091.8,12.32846695]
[1768903220749,0.533,3092.2,3092.0,12.32846695]
[1768903221044,0.0018,3092.4,3092.0,12.32846695]
[1768903221341,0.533,3092.3,3092.0,12.32846695]
[1768903222648,12.3942328,3092.3,3091.7,12.32846695]
[1768903222843,12.3942328,3092.3,3091.5,12.32846893]
[1768903223346,12.3942328,3092.3,3091.5,1.98e-06]
[1768903223347,11.77630857,3092.2,3091.5,1.98e-06]
[1768903224950,0.533,3092.1,3091.5,1.98e-06]
[1768903225663,12.30930857,3092.1,3091.5,1.98e-06]
[1768903226740,0.533,3092.0,3091.5,1.98e-06]
[1768903226943,12.30930857,3092.0,3091.5,1.98e-06]
[1768903230275,0.533,3091.9,3091.5,1.98e-06]
[1768903230955,12.30930857,3091.9,3091.5,1.98e-06]
[1768903231160,0.533,3091.9,3091.5,1.98e-06]
[1768903231467,12.30930857,3091.9,3091.5,1.98e-06]
[1768903234966,12.30930857,3091.9,3091.8,0.002]
[1768903235770,0.001,3092.0,3091.8,0.002]
[1768903235934,0.533,3092.1,3091.9,12.16380933]
[1768903236137,0.0018,3092.4,3091.9,12.16380933]
[1768903236341,0.5348,3092.4,3091.9,12.16380933]
[1768903236971,12.31110857,3092.4,3091.9,12.16380933]
[1768903237495,12.31110857,3092.4,3091.8,0.002]
[1768903237672,11.77630857,3092.3,3091.8,0.002]
[1768903240386,12.30930857,3092.2,3091.8,0.002]
[1768903240849,0.533,3092.1,3091.8,12.16580933]
[1768903241665,0.533,3092.3,3091.8,12.16580933]
[1768903241888,0.533,3092.3,3092.0,12.16380933]
[1768903242456,0.0018,3092.4,3092.1,12.16380933]
[1768903242857,0.0008,3092.7,3092.0,3.23409988]
[1768903242858,0.0008,3092.7,3092.2,12.16380933]
[1768903243062,0.5338,3092.7,3092.2,12.16380933]
[1768903244448,0.5338,3092.7,3092.4,11.8077228]
[1768903244649,0.0008,3092.7,3092.4,11.8077228]
[1768903245366,0.0008,3092.7,3092.4,13.27727261]
[1768903245770,0.0008,3093.4,3092.5,11.8077228]
[1768903245980,0.0008,3093.4,3092.5,12.3397228]
[1768903246648,0.0008,3093.4,3092.7,11.8077228]
[1768903248683,0.0008,3093.4,3092.9,11.8077228]
[1768903248984,0.0008,3093.4,3093.1,11.8077228]
[1768903250582,12.91907593,3093.4,3092.7,11.8077228]
[1768903250749,12.91907593,3093.4,3092.7,15.04113977]
[1768903251249,12.91907593,3093.4,3092.7,11.8077228]
[1768903251448,12.91907593,3093.4,3092.7,13.04169508]
[1768903252183,12.91907593,3093.4,3092.7,11.7309594]
[1768903252357,12.91907593,3093.4,3092.6,3.2335116]
[1768903252563,12.91907593,3093.4,3092.5,15.04129938]
[1768903252882,12.91907593,3093.4,3092.3,0.532]
[1768903252883,12.91907593,3093.4,3092.3,15.04146196]
[1768903253062,12.91907593,3093.4,3092.4,3.23372728]
[1768903253262,12.45264402,3093.3,3092.4,3.23372728]
[1768903253458,12.45264402,3093.1,3092.4,3.23372728]
[1768903253765,12.45264402,3093.1,3092.3,15.04151144]
[1768903254367,12.45264402,3093.1,3092.4,15.8968257]
[1768903255175,12.45264402,3093.1,3092.5,3.23362788]
[1768903255484,12.45264402,3093.1,3092.4,12.66311801]
[1768903256153,12.45264402,3093.1,3092.2,12.66311801]
[1768903256356,12.45264402,3093.1,3092.2,15.89704094]
[1768903256772,12.45264402,3093.1,3092.1,3.23400841]
[1768903257149,12.45264402,3093.1,3092.1,15.89712642]
[1768903257569,3.23303161,3093.1,3092.1,12.66311801]
[1768903257770,3.23303161,3093.1,3091.9,3.23416516]
[1768903257771,12.82924718,3093.0,3091.9,12.66311801]
[1768903258081,12.82924718,3093.0,3091.8,12.66511801]
[1768903258880,12.82924718,3093.0,3092.7,0.002]
[1768903259190,12.82924718,3093.0,3091.8,15.89745025]
[1768903259411,12.82924718,3093.0,3091.8,12.66312197]
[1768903259595,12.45264402,3092.8,3092.4,0.002]
[1768903259756,12.45264402,3092.6,3092.4,0.002]
[1768903260680,12.45264402,3092.6,3091.8,3.96e-06]
[1768903260876,7.44998408,3092.9,3091.8,3.96e-06]
[1768903260877,12.45264402,3092.4,3091.8,3.96e-06]
[1768903261189,12.98564402,3092.3,3091.8,3.96e-06]
[1768903262384,13.36224718,3092.3,3091.8,3.96e-06]
[1768903266132,0.533,3092.4,3091.8,12.66312197]
[1768903266341,12.98564402,3093.0,3092.0,12.66311801]
[1768903266524,0.533,3093.0,3092.0,12.66311801]
[1768903267034,12.98564402,3093.0,3092.0,12.66311801]
[1768903267201,12.98564402,3093.0,3092.2,12.66311801]
[1768903267408,0.533,3093.0,3092.2,12.66311801]
[1768903268239,0.533,3093.0,3092.2,3.23394068]
[1768903268443,12.98564402,3093.0,3092.3,12.66311801]
[1768903271721,12.98564402,3093.0,3091.8,3.96e-06]
[1768903271722,12.45264402,3092.9,3091.8,3.96e-06]
[1768903272047,12.45264402,3092.9,3092.3,0.002]
[1768903272251,12.45264402,3092.6,3092.3,0.002]
[1768903272404,12.98564402,3092.5,3092.3,0.002]
[1768903272609,12.98564402,3092.5,3092.0,0.002]
[1768903272812,0.533,3092.5,3092.0,12.66511801]
[1768903273904,12.98564402,3092.5,3092.0,0.002]
[1768903274109,12.45264402,3092.4,3092.0,0.002]
[1768903276110,12.45264402,3092.3,3091.8,3.96e-06]
[1768903277167,12.45264402,3092.2,3091.8,3.96e-06]
[1768903277387,0.001,3092.7,3091.8,3.96e-06]
[1768903277388,12.45264402,3092.0,3091.8,3.96e-06]
[1768903277955,0.533,3091.9,3091.8,3.96e-06]
[1768903281839,0.533,3092.0,3091.6,12.66311801]
[1768903282081,0.533,3092.1,3091.6,13.70363102]
[1768903282281,0.533,3092.1,3091.6,12.66311801]
[1768903282583,12.45364402,3092.7,3091.6,12.66311801]
[1768903282888,12.98564402,3092.6,3091.6,12.66311801]
[1768903284348,0.001,3091.8,3091.7,3.23446647]
[1768903284570,12.82480421,3092.6,3091.8,12.55270182]
[1768903287354,12.82480421,3092.6,3091.9,12.55270182]
[1768903289993,0.533,3092.5,3092.0,12.55270182]
[1768903290197,0.001,3092.7,3092.1,12.55270182]
[1768903290400,0.001,3093.1,3092.4,12.55270182]
[1768903290401,0.533,3093.0,3092.4,12.55270182]
[1768903290703,12.8390641,3093.0,3092.4,12.55270182]
[1768903293101,12.8390641,3093.0,3092.5,12.55270182]
[1768903293902,0.533,3093.0,3092.5,12.55270182]
[1768903294102,0.533,3093.0,3092.6,12.55270182]
[1768903294274,0.001,3093.1,3092.6,12.55270182]
[1768903294477,0.534,3093.1,3092.6,12.55270182]
[1768903295077,0.001,3093.1,3092.6,12.55270182]
[1768903296086,0.001,3093.1,3092.7,12.55270182]
[1768903296280,0.001,3093.1,3092.9,12.55270182]
[1768903298101,0.001,3093.1,3093.0,15.78580883]
[1768903298279,0.001,3093.1,3093.0,12.55270182]
[1768903299015,0.001,3093.1,3092.8,14.13131973]
[1768903299585,12.3070641,3093.1,3092.5,12.55270182]
[1768903299995,12.3070641,3093.1,3092.5,15.78629577]
[1768903300399,12.3070641,3093.1,3092.6,12.55270182]
[1768903301215,12.3070641,3093.1,3092.5,12.55270182]
[1768903302615,12.3070641,3093.1,3092.6,12.55270182]
[1768903302803,12.3070641,3093.1,3092.6,14.45469709]
[1768903303812,0.001,3093.1,3092.6,14.45469709]
[1768903305514,12.73854464,3093.1,3092.6,14.45469709]
[1768903305818,12.73854464,3093.1,3092.5,12.21579255]
[1768903306181,12.73854464,3093.1,3092.4,15.44949406]
[1768903306388,12.73854464,3093.1,3092.5,3.23360785]
[1768903307332,12.73854464,3093.1,3092.7,12.21579255]
[1768903307517,0.001,3093.1,3092.7,12.21579255]
[1768903307718,0.001,3093.1,3092.8,12.21579255]
[1768903308313,0.001,3093.1,3092.8,14.08406293]
[1768903308519,12.73834464,3093.4,3092.8,14.08406293]
[1768903308520,0.0008,3093.4,3092.9,12.21579255]
[1768903311530,12.73834464,3093.4,3092.9,12.21579255]
[1768903311838,12.73834464,3093.4,3092.7,12.21579255]
[1768903312049,12.73834464,3093.4,3092.5,0.532]
[1768903312424,12.73834464,3093.4,3092.5,12.74779255]
[1768903313831,12.73834464,3093.4,3092.5,15.98136833]
[1768903314034,12.73834464,3093.4,3092.5,12.98008409]
[1768903314536,12.73834464,3093.4,3092.5,16.21369682]
[1768903314733,12.73834464,3093.4,3092.5,12.98008409]
[1768903314936,12.11138302,3093.3,3092.5,12.98008409]
[1768903315126,12.11138302,3093.1,3092.5,16.21368833]
[1768903315326,12.11138302,3093.1,3092.5,12.98008409]
[1768903315631,12.11138302,3093.1,3092.4,3.23371307]
[1768903315945,12.11138302,3093.1,3092.3,12.98008409]
[1768903316133,12.11138302,3093.1,3092.2,3.8]
[1768903318532,3.23300711,3093.1,3092.1,12.98008409]
[1768903318728,12.11138302,3093.0,3092.1,12.98008409]
[1768903319433,12.11138302,3093.0,3092.6,0.002]
[1768903320774,0.001,3093.1,3092.6,0.002]
[1768903320775,12.64538302,3093.1,3092.6,12.98208409]
[1768903321069,12.64538302,3093.1,3092.6,0.002]
[1768903321375,12.64538302,3093.1,3092.3,0.002]
[1768903321975,12.64538302,3093.1,3092.0,12.98168409]
[1768903321976,12.64538302,3093.1,3092.0,0.0016]
[1768903322341,12.64538302,3093.1,3091.5,13.51208607]
[1768903322558,12.64538302,3093.1,3091.5,16.21474246]
[1768903322559,12.11138302,3092.3,3091.5,16.21474246]
[1768903322757,12.64438302,3092.3,3091.6,1.62147425]
[1768903323678,12.64438302,3092.3,3091.5,1.98e-06]
[1768903325072,12.11138302,3092.2,3091.5,1.98e-06]
[1768903326892,12.11138302,3092.2,3091.1,0.002]
[1768903327075,12.11138302,3092.0,3091.1,0.002]
[1768903327379,12.11138302,3091.8,3091.1,0.002]
[1768903327586,12.11138302,3091.6,3091.1,0.002]
[1768903327772,12.11138302,3091.4,3091.1,0.002]
[1768903330387,12.11138302,3092.2,3091.1,12.98208409]
[1768903330558,12.11138302,3092.0,3091.1,12.98208409]
[1768903330986,12.11138302,3091.8,3091.1,12.98208409]
[1768903331200,3.23425725,3091.9,3091.1,0.002]
[1768903331201,12.11138302,3091.6,3091.1,0.002]
[1768903331766,12.11138302,3091.6,3091.4,0.002]
[1768903332085,12.11238302,3091.6,3091.4,0.002]
[1768903333991,12.64538302,3091.6,3091.4,0.002]
[1768903335174,12.64538302,3091.6,3091.1,12.98208409]
[1768903335361,12.64538302,3091.6,3091.1,0.002]
[1768903336592,12.64538302,3091.6,3091.1,12.98208409]
[1768903339192,0.001,3091.6,3091.1,12.98208409]
[1768903339780,12.11138302,3092.3,3091.2,12.98008409]
[1768903340187,12.11138302,3092.1,3091.2,13.51208409]
[1768903340897,12.64438302,3092.0,3091.3,12.98008409]
[1768903344171,12.64438302,3092.0,3091.4,12.22114091]
[1768903344370,0.001,3091.7,3091.4,12.22114091]
[1768903347083,0.001,3091.7,3091.1,0.002]
[1768903347084,12.7308308,3091.7,3091.1,0.002]
[1768903347997,12.7298308,3091.5,3091.1,0.002]
[1768903348628,12.7298308,3091.5,3091.1,12.22114091]
[1768903348812,0.533,3091.6,3091.1,12.22114091]
[1768903349685,0.001,3091.7,3091.1,13.76713792]
[1768903349921,0.533,3092.0,3091.2,12.21914091]
[1768903350304,12.7298308,3092.1,3091.2,12.21914091]
[1768903350503,0.533,3092.0,3091.2,12.21914091]
[1768903350707,13.2628308,3092.0,3091.2,12.21914091]
[1768903353116,12.7298308,3091.9,3091.2,12.21914091]
[1768903353922,12.7298308,3091.9,3091.1,0.002]
[1768903356021,12.7298308,3091.8,3091.1,12.22114091]
[1768903356219,12.7298308,3091.8,3091.5,0.002]
[1768903356539,6.46854502,3091.9,3091.0,0.0036]
[1768903356540,12.7298308,3091.6,3091.0,0.00160197]
[1768903356723,12.7298308,3091.4,3090.7,0.002]
[1768903356896,12.7298308,3091.3,3090.7,0.002]
[1768903357303,12.7298308,3091.3,3090.7,12.22114091]
[1768903359929,12.7298308,3091.3,3090.7,0.002]
[1768903360606,12.7298308,3091.3,3090.7,12.22114091]
[1768903362135,13.2628308,3091.3,3090.7,12.22114091]
[1768903363533,0.533,3091.3,3090.7,12.22114091]
[1768903364131,12.97433579,3091.4,3090.7,12.22114091]
[1768903364329,0.533,3091.3,3090.7,12.22114091]
[1768903364528,13.50653579,3091.3,3090.7,12.22114091]
[1768903365130,0.0008,3091.4,3090.7,12.22114091]
[1768903365329,0.0008,3091.4,3090.7,13.443655]
[1768903368323,0.0008,3091.4,3091.0,0.002]
[1768903368525,12.97433579,3091.4,3091.0,0.002]
[1768903368715,12.97433579,3091.4,3090.7,0.002]
[1768903369043,0.001,3091.0,3090.7,0.002]
[1768903371318,0.001,3091.0,3090.7,12.43730228]
[1768903373619,0.0008,3091.4,3090.8,12.0176571]
[1768903373968,0.5338,3091.4,3090.8,12.0176571]
[1768903375028,0.0008,3091.4,3090.9,12.0176571]
[1768903375233,0.0018,3091.7,3091.1,12.0176571]
[1768903376220,0.0018,3091.7,3091.2,12.0176571]
[1768903380450,12.40216453,3091.7,3091.2,12.0176571]
[1768903380641,12.40216453,3091.7,3091.0,12.0196571]
[1768903380843,12.40136453,3091.4,3091.0,0.002]
[1768903381023,12.40136453,3091.4,3091.0,1.90750555]